Cogmind - Beta 15 @@@ ROGUE MODE // 2025.06.09 @ 16:21:10 Player: ldi (hl). (hl) Result: Destroyed by G-47 Trooper with Particle Gun Performance ------------- Evolutions (2) 1000 Regions Visited (5) 1000 Robots Destroyed (45) 225 Value Destroyed (1115) 1115 Prototype IDs (5) 100 Alien Tech Used (0) 0 Bonus (-42) -42 TOTAL SCORE: 3398 Bonus ------- Friendly Fire -42 Cogmind --------- Core Integrity 0/550 Matter 181/300 Energy 100/100 System Corruption 8% Temperature Cool (54) Movement Core (100) Ox1 Location -8/Materials Parts ------- > --- POWER (1) -------- (None) > --- PROPULSION (3) --- (None) > --- UTILITY (5) ------ (None) > --- WEAPON (2) ------- Rocket Launcher > --- INVENTORY (5) ---- Scrap Suit Guided EMP Blaster Katana Peak State ------------ > --- POWER ------------ Fission Core > --- PROPULSION ------- VSS Leg VSS Leg VSS Leg > --- UTILITY ---------- Heat Sink Medium Storage Unit Light Armor Plating > --- WEAPON ----------- Improved Medium Laser Improved Medium Laser > --- INVENTORY -------- Nuclear Core VSS Leg Scrap Suit Compact Matter Pod Improved Sensor Array Improved Medium Laser Improved Assault Rifle Improved Assault Rifle Grenade Launcher [Rating: 26] Favorites ----------- Power Fission Core Engine Light Ion Engine Power Core Fission Core Propulsion Light Treads Treads Light Treads Leg Aluminum Leg Hover Unit Backup Propulsion I Utility Heat Sink Device Heat Sink Storage Medium Storage Unit Protection Light Armor Plating Weapon Light Assault Rifle Energy Gun Improved Medium Laser Ballistic Gun Light Assault Rifle Launcher Rocket Launcher Slashing Weapon Katana Build | -11 -10 -10 -9 -9 -8 ------- Run | Yrd Mat Min Mat Sto Mat Slots Evolved 4 | . . . 2 . 2 Power . | . . . . . . Propulsion 1 | . . . 1 . . Utility 3 | . . . 1 . 2 Weapon . | . . . . . . Parts Attached 42 | 6 2 8 11 10 5 Power 4 | 1 . 2 . . 1 Engine 3 | 1 . 1 . . 1 Core 1 | . . 1 . . . Reactor . | . . . . . . Propulsion 13 | 2 . 2 6 3 . Treads 5 | 2 . . 1 2 . Leg 8 | . . 2 5 1 . Wheel . | . . . . . . Hover . | . . . . . . Flight . | . . . . . . Utility 10 | 1 2 1 3 3 . Device 5 | . 1 . 2 2 . Storage 4 | 1 1 1 . 1 . Processor . | . . . . . . Hackware . | . . . . . . Protection 1 | . . . 1 . . Artifact . | . . . . . . Weapon 15 | 2 . 3 2 4 4 Energy Gun 6 | . . 2 2 1 1 Energy Cannon . | . . . . . . Ballistic Gun 4 | 2 . . . 2 . Ballistic Cannon . | . . . . . . Launcher 4 | . . 1 . 1 2 Special Weapon . | . . . . . . Impact Weapon . | . . . . . . Slashing Weapon 1 | . . . . . 1 Piercing Weapon . | . . . . . . Special Melee Weapon . | . . . . . . Unidentified Prototypes 3 | . . . 1 2 . Parts Lost 19 | . . 5 1 5 8 Power 3 | . . 1 . 1 1 Propulsion 5 | . . 2 . 2 1 Utility 4 | . . . 1 1 2 Weapon 7 | . . 2 . 1 4 Highest Loss Streak 7 | . . 5 1 3 7 To Critical Strikes . | . . . . . . Average Backups 5 | . 3 6 8 6 2 Power . | . 1 1 . . . Propulsion . | . . . . . . Utility 1 | . . 2 2 2 1 Weapon 2 | . 2 2 4 2 1 Tool/Special . | . . . . . . Unused Backups 8 | . . . 1 5 2 Power 2 | . . . 1 1 . Propulsion 1 | . . . . 1 . Utility 1 | . . . . . 1 Weapon 4 | . . . . 3 1 Tool/Special . | . . . . . . Average Slot Usage (%) 85 | . 93 97 92 74 36 Engine 5 | . 14 9 . . 4 Core 4 | . . 4 11 5 . Treads 13 | . 28 17 1 10 . Leg 13 | . . 8 27 22 4 Device 10 | . 7 14 11 10 5 Storage 11 | . 14 14 11 10 4 Protection 2 | . . . 7 5 . Energy Gun 9 | . . 5 21 10 7 Ballistic Gun 11 | . 28 21 . . . Peak Build Rating 26 | 6 7 17 25 26 15 Average Rating 13 | 3 6 10 21 17 9 On Entrance 10 | . 6 7 17 25 9 Naked Turns 28 | . . . . 6 22 Heaviest Build 30 | 10 11 25 30 30 15 Greatest Support 42 | 40 40 40 42 36 10 Greatest Overweight (x) 8 | . . 8 2 . 2 Average Overweight (x) . | . . . . . . Largest Inventory Capacity 10 | 8 8 10 10 10 5 Average Capacity 8 | 6 8 9 10 7 5 Most Carried 10 | 3 5 9 10 10 5 Average Carried 6 | 1 3 6 9 7 4 Final Capacity 10 | 8 8 10 10 5 5 Final Carried 10 | 1 5 6 10 5 5 Class Distribution -------------------- 72% | Mutant 27% | Scavenger-Mutant Dominant Class ---------------- Mutant | -10/Materials Mutant | -10/Mines Scavenger-Mutant | -9/Materials Mutant | -9/Storage Mutant | -8/Materials Resources | -11 -10 -10 -9 -9 -8 ----------- Run | Yrd Mat Min Mat Sto Mat Matter Collected 803 | 177 137 243 111 135 . Remotely . | . . . . . . Salvage Created 1530 | . 284 154 584 332 176 Parts 77 | . 19 12 24 17 5 Haulers Intercepted 2 | . . . 1 1 . Recyclers Shooed 2 | . . 1 1 . . Parts Field Recycled . | . . . . . . Retrieved Matter . | . . . . . . Parts Self-Destructed . | . . . . . . Prevented . | . . . . . . Kills | -11 -10 -10 -9 -9 -8 ------- Run | Yrd Mat Min Mat Sto Mat Combat Hostiles Destroyed 39 | . 5 9 9 9 7 Guns 24 | . 5 2 9 8 . AOE 15 | . . 7 . 1 7 Classes Destroyed 8 | . 2 3 2 . 1 Worker 5 | . . 3 2 . . Hauler 2 | . . . 1 1 . Recycler 4 | . 1 . 3 . . Swarmer 9 | . . 3 3 3 . Grunt 19 | . 5 1 4 5 4 Brawler 1 | . . . . . 1 Sentry 5 | . . . 2 1 2 Assembled 5 | . . 5 . . . Best Kill Streak 8 | . 5 5 6 8 5 Combat Bots Only 7 | . 3 5 3 7 5 Max Kills in Single Turn 2 | . 1 2 2 1 2 Gunslinging . | . . . . . . Exploded 2 | . . 2 . 1 2 Melee . | . . . . . . Uniques/NPCs Destroyed . | . . . . . . Combat | -11 -10 -10 -9 -9 -8 -------- Run | Yrd Mat Min Mat Sto Mat Hostile Shots Fired 256 | . 16 35 35 99 71 Missed 71 | . 1 14 10 28 18 Hits 185 | . 15 21 25 71 53 Melee 9 | . . 5 . . 4 Projectile 176 | . 15 16 25 71 49 AOE 6 | . . 6 . . . Critical Strikes 7 | . . . . 3 4 Part Disruptions 4 | . . . . 4 . Damage Taken 3145 | . 187 549 269 1151 989 Core 1087 | . 38 98 49 342 560 Absorbed by Shields . | . . . . . . Core Remaining (%) 49 | 100 . 45 . 2 . Volleys Fired 130 | . 20 32 39 26 13 Largest 2 | . 2 2 2 2 2 Hottest 121 | . 40 85 121 112 66 Shots Fired 234 | . 40 50 76 47 21 Gun 209 | . 40 39 76 46 8 Cannon . | . . . . . . Launcher 25 | . . 11 . 1 13 Special . | . . . . . . Kinetic 73 | . 40 28 . 5 . Thermal 136 | . . 11 76 41 8 Explosive 25 | . . 11 . 1 13 Electromagnetic . | . . . . . . Robot Hit Streak 9 | . 8 7 6 6 9 Robot Miss Streak 3 | . 1 2 3 3 1 Penetration Max . | . . . . . . Secondary Targets 1 | . . . 1 . . Max Gunslinging Chain 1 | . . . 1 . . Shots Hit Robots 151 | . 31 34 45 26 15 Core Hits 100 | . 16 27 20 15 22 Critical Kills . | . . . . . . Critical Parts Destroyed . | . . . . . . Critical Strikes 13 | . . . 10 3 . Burn 13 | . . . 10 3 . Melee Attacks . | . . . . . . Impact . | . . . . . . Slashing . | . . . . . . Piercing . | . . . . . . Sneak Attacks . | . . . . . . Combat Hostiles . | . . . . . . Follow-up Attacks . | . . . . . . Damage Inflicted 3219 | . 247 829 749 472 922 Guns 1737 | . 241 289 747 410 50 Cannons . | . . . . . . Explosions 1465 | . . 540 . 53 872 Melee . | . . . . . . Ramming 17 | . 6 . 2 9 . Kinetic 480 | . 241 191 . 48 . Thermal 1257 | . . 98 747 362 50 Explosive 1465 | . . 540 . 53 872 Electromagnetic . | . . . . . . Impact . | . . . . . . Slashing . | . . . . . . Piercing . | . . . . . . Highest Corruption 10 | . . 6 . 10 8 Average Corruption 7 | . . 6 . 8 7 Corruption Purged . | . . . . . . Corruption Blocked . | . . . . . . Effects 17 | . . 6 . 10 1 Message Errors 8 | . . 3 . 4 1 Matter Fused 3 | . . 2 . 1 . Heat Flow Errors 2 | . . . . 2 . Energy Discharges 1 | . . . . 1 . Data Loss (minor) 1 | . . . . 1 . Data Loss (major) 1 | . . 1 . . . Misdirections 1 | . . . . 1 . Overload Shots . | . . . . . . Overflow Damage 29 | . . 26 . . 3 Projectiles . | . . . . . . Explosions 29 | . . 26 . . 3 Melee . | . . . . . . Knockbacks . | . . . . . . Impact . | . . . . . . Kinetic . | . . . . . . Secondary . | . . . . . . Self-Inflicted Damage 201 | . . 81 . 4 116 Shots 9 | . . 4 . . 5 Rammed 3 | . 1 . . 2 . Targets Rammed 4 | . 1 . 1 2 . Kicked 1 | . . . 1 . . Crushed . | . . . . . . Highest Temperature 282 | . 18 33 282 269 45 Average Temperature 69 | . 8 17 85 75 17 Received Heat Transfer 768 | . 105 6 84 186 387 Effects 1 | . . . . 1 . Interference 1 | . . . . 1 . Siege Activations . | . . . . . . Martial Activations . | . . . . . . Shielding Activations . | . . . . . . Robots Disrupted . | . . . . . . Combat Hostiles . | . . . . . . Robots Corrupted . | . . . . . . Combat Hostiles . | . . . . . . Parts Fried . | . . . . . . Impact Corruptions . | . . . . . . Robots Melted . | . . . . . . Combat Hostiles . | . . . . . . Parts Melted 7 | . . . 3 4 . Heat Transferred 3997 | . . 223 2442 1110 222 Parts Sabotaged . | . . . . . . Parts Stolen . | . . . . . . Parts Stripped . | . . . . . . Power Chain Reactions . | . . . . . . Alert | -11 -10 -10 -9 -9 -8 ------- Run | Yrd Mat Min Mat Sto Mat Maximum Alert Level 1 | . . . . 1 1 Low Security (%) 99 | 100 100 100 100 98 98 Level 1 . | . . . . 1 1 Level 2 . | . . . . . . Level 3 . | . . . . . . Level 4 . | . . . . . . Level 5 . | . . . . . . High Security . | . . . . . . Max Security . | . . . . . . Peak Influence 238 | . 105 89 97 205 238 Initial 37 | . . . . . 37 Average 45 | . 30 19 36 103 29 Influence Increases 1313 | . 152 151 291 383 336 Destroy 0b10 Robot/C 680 | . 100 80 180 180 140 Destroy 0b10 Robot/NC 55 | . 5 15 30 5 . Destroy Leader 164 | . 30 10 52 32 40 Successful Hack 74 | . 17 . 12 25 20 Disable Machine 30 | . . . . 15 15 Destroy Structure 100 | . . 46 2 6 46 Partial Spotted 45 | . . . . 45 . Lose Combat Pursuer 165 | . . . 15 75 75 Influence Decreases 1057 | . 152 151 291 294 169 Entered New Map 52 | . . . . . 52 Time Decay 776 | . 152 141 185 244 54 Lost Part 133 | . . 10 10 50 63 Purge Threat 96 | . . . 96 . . Squads Dispatched 14 | . 3 . 2 3 6 Investigation 8 | . 1 . 2 3 2 Extermination . | . . . . . . Reinforcement 3 | . 2 . . . 1 Assault . | . . . . . . Garrison 3 | . . . . . 3 Intercept . | . . . . . . Searches Triggered . | . . . . . . Construction Impeded . | . . . . . . Haulers Reinforced . | . . . . . . Active Scanning Responses . | . . . . . . Cargo Convoy Interrupts . | . . . . . . Stealth | -11 -10 -10 -9 -9 -8 --------- Run | Yrd Mat Min Mat Sto Mat Distress Signals 1 | . . . . 1 . Communications Jammed . | . . . . . . Distress Signals . | . . . . . . Times Spotted 83 | . 9 23 9 23 19 Peak Tracking Total 20 | . 5 20 3 5 8 Tactical Retreats 9 | . . . 1 7 1 Traps | -11 -10 -10 -9 -9 -8 ------- Run | Yrd Mat Min Mat Sto Mat Traps Triggered 4 | . 1 . . 2 1 Indirectly . | . . . . . . Trap Hack Attempts . | . . . . . . Triggered . | . . . . . . Disarmed . | . . . . . . Reprogrammed . | . . . . . . Reused . | . . . . . . Traps Extracted . | . . . . . . Installed . | . . . . . . Triggered . | . . . . . . Machines | -11 -10 -10 -9 -9 -8 ---------- Run | Yrd Mat Min Mat Sto Mat Machines Disabled 2 | . . . . 1 1 Max in Single Turn 1 | . . . . 1 1 Machines Repaired . | . . . . . . Machines Dismantled . | . . . . . . Machines Sabotaged . | . . . . . . Overloaded Fab Kills . | . . . . . . Hacking | -11 -10 -10 -9 -9 -8 --------- Run | Yrd Mat Min Mat Sto Mat Machines Accessed 19 | . 5 . 3 7 4 Terminals 15 | . 4 . 3 6 2 Fabricators . | . . . . . . Repair Stations 1 | . . . . . 1 Recycling Units 2 | . 1 . . 1 . Scanalyzers . | . . . . . . Garrison Access 1 | . . . . . 1 Total Hacks 64 | . 17 . 13 21 13 Successful 26 | . 8 . 5 10 3 Failed 37 | . 8 . 8 11 10 Catastrophic 4 | . 1 . . 1 2 Database Lockouts 1 | . 1 . . . . Manual 48 | . 15 . 9 16 8 Terminals 49 | . 14 . 13 16 6 Fabricators . | . . . . . . Repair Stations 4 | . . . . . 4 Recycling Units 8 | . 3 . . 5 . Scanalyzers . | . . . . . . Garrison Access 3 | . . . . . 3 Terminal Hacks 10 | . 4 . 2 4 . Part Schematic 1 | . 1 . . . . Prototype ID Bank 1 | . 1 . . . . Open Door 2 | . . . . 2 . Branch Access Points 2 | . . . 1 1 . Terminal Index 1 | . 1 . . . . Unreport Threat 1 | . . . 1 . . Recall Investigation 1 | . . . . 1 . Recall Reinforcements 1 | . 1 . . . . Fabricator Hacks . | . . . . . . Repair Station Hacks 1 | . . . . . 1 Refit 1 | . . . . . 1 Recycling Unit Hacks . | . . . . . . Scanalyzer . | . . . . . . Garrison Access Hacks . | . . . . . . Unauthorized Hacks 15 | . 4 . 3 6 2 Terminals 8 | . 2 . 3 2 1 Assimilate 1 | . 1 . . . . Botnet 7 | . 1 . 3 2 1 Fabricators . | . . . . . . Repair Stations 1 | . . . . . 1 Mechanics 1 | . . . . . 1 Recycling Units 6 | . 2 . . 4 . Monitor 2 | . 1 . . 1 . Reject 1 | . . . . 1 . Recyclers 2 | . 1 . . 1 . Mask 1 | . . . . 1 . Scanalyzers . | . . . . . . Garrison Access . | . . . . . . Data Cores Recovered 1 | . . . . 1 . Used . | . . . . . . Hacking Detections 14 | . 4 . 3 3 4 Full Trace Events 7 | . 1 . 2 2 2 Feedback Events . | . . . . . . Feedback Blocked . | . . . . . . Robot Schematics Acquired . | . . . . . . Robots Built . | . . . . . . Authchips . | . . . . . . Time . | . . . . . . Total Robot Build Rating . | . . . . . . Part Schematics Acquired 1 | . 1 . . . . Parts Built . | . . . . . . Authchips . | . . . . . . Time . | . . . . . . Total Part Build Rating . | . . . . . . Parts Repaired . | . . . . . . Time . | . . . . . . Parts Recycled . | . . . . . . Recycled Matter . | . . . . . . Retrieved Matter . | . . . . . . Retrieved Components . | . . . . . . Parts Scanalyzed . | . . . . . . Part Schematics Acquired . | . . . . . . Parts Damaged . | . . . . . . Bothacking | -11 -10 -10 -9 -9 -8 ------------ Run | Yrd Mat Min Mat Sto Mat Used RIF Installer . | . . . . . . Robots Hacked . | . . . . . . Non-combat . | . . . . . . Combat . | . . . . . . Robot Hacks Applied . | . . . . . . Relay Couplers Released . | . . . . . . Fabnet Peak Effective % . | . . . . . . Robots Rewired . | . . . . . . Allies Hacked . | . . . . . . Hacks Repelled . | . . . . . . Allies | -11 -10 -10 -9 -9 -8 -------- Run | Yrd Mat Min Mat Sto Mat Total Allies . | . . . . . . Largest Group . | . . . . . . Highest-Rated Group . | . . . . . . Highest-Rated Ally . | . . . . . . Total Orders . | . . . . . . Ally Attacks . | . . . . . . Total Damage . | . . . . . . Kills . | . . . . . . Allies Corrupted . | . . . . . . Allies Melted . | . . . . . . Intel | -11 -10 -10 -9 -9 -8 ------- Run | Yrd Mat Min Mat Sto Mat Active Infowar (turns) 212 | . . . . 212 . Sensors 212 | . . . . 212 . Robot Analysis Total . | . . . . . . Derelict Logs Recovered 2 | . . 2 . . . Drone Launches . | . . . . . . Drone Recoveries . | . . . . . . Exploration | -11 -10 -10 -9 -9 -8 ------------- Run | Yrd Mat Min Mat Sto Mat Turns Passed 2341 | 65 494 589 489 551 153 Spaces Moved 1590 | 36 267 334 290 550 113 Core 457 | 2 . 10 . 361 84 Treads 479 | 34 267 178 . . . Legs 640 | . . 146 290 189 15 Wheels . | . . . . . . Hover 14 | . . . . . 14 Flight . | . . . . . . Fastest Speed 50 | 50 160 120 90 50 50 Average Speed 111 | 153 160 148 117 63 88 Slowest Speed 450 | 160 160 450 270 90 250 Overloaded Moves . | . . . . . . Propulsion Burnouts . | . . . . . . Robots Hopped . | . . . . . . Potential Cave-ins . | . . . . . . Cave-ins Triggered . | . . . . . . Exploration Rate (%) 38 | 4 60 70 21 64 14 Regions Visited 5 Branch Regions 2 Pre-discovered Areas 2 | . . 1 . 1 . Known Exits Taken 2 | . . . 1 1 . Unknown Exits Taken 3 | 1 1 1 . . . Scrap Searched 1 | . . 1 . . . Spaces Dug . | . . . . . . Terrain Destroyed 156 | . . 83 . 5 68 Melee . | . . . . . . Projectile . | . . . . . . AOE 156 | . . 83 . 5 68 Terrain Rammed . | . . . . . . Walls Destroyed . | . . . . . . Machines Disabled . | . . . . . . Actions | -11 -10 -10 -9 -9 -8 --------- Run | Yrd Mat Min Mat Sto Mat Total 1936 | 44 301 381 364 701 145 Wait 124 | . 6 . 5 102 11 Move 1585 | 35 266 333 289 549 113 Hop . | . . . . . . Pick Up 22 | 3 4 3 8 3 1 Fast Attach 23 | 4 2 2 6 6 3 Attach 11 | 2 . 3 2 3 1 Detach 2 | . 1 . 1 . . Swap 15 | . . 6 3 4 2 Drop 20 | . 1 2 10 6 1 Fire 130 | . 20 32 39 26 13 Melee . | . . . . . . Ram 2 | . . . . 2 . Kick 1 | . . . 1 . . Crush 1 | . 1 . . . . Escape Stasis . | . . . . . . Rewire . | . . . . . . Trap . | . . . . . . Miscellaneous . | . . . . . . Route ------- -11/Scrapyard -10/Materials (discovered 3 exits: *Mat x2 / [*Min]) -10/Mines (discovered 2 exits: *Mat x2) -9/Materials (discovered 4 exits: Mat / Min / *Sto x2) -9/Storage (discovered 2 exits: *Mat / Rec) -8/Materials History --------- Turn | Location | Event 13 | -11/Scrapyard | Discovered new exit (range 15) 66 | -11/Scrapyard | Entered Materials 310 | -10/Materials | Build established: Mutant 328 | -10/Materials | Discovered new exit (range 11) 395 | -10/Materials | Central database locked down 402 | -10/Materials | Discovered new exit (range 10) 492 | -10/Materials | Discovered new exit (range 13) 560 | -10/Materials | Entered Mines 570 | -10/Mines | Met a Derelict bent on vengeance 632 | -10/Mines | Found a Scrap Suit stashed away for nefarious purposes 636 | -10/Mines | Found Scrap Suit 709 | -10/Mines | Discovered new exit (range 9) 730 | -10/Mines | Learned location of 1 exit from Materials 867 | -10/Mines | Assembled infested the area 872 | -10/Mines | Assisted by a Guerilla fighting off Assembled 915 | -10/Mines | Core integrity fell below 50% 945 | -10/Mines | Lost 5 parts (1p2n2w) 1097 | -10/Mines | Discovered new exit (range 9) 1105 | -10/Mines | Learned location of Zion (-7) 1149 | -10/Mines | Entered Materials 1149 | -9/Materials | Evolved 2 slots: Propulsion x1, Utility x1 1150 | -9/Materials | Identified exit to Materials 1206 | -9/Materials | Discovered new exit (range 16) 1250 | -9/Materials | Build established: Scavenger-Mutant 1359 | -9/Materials | Discovered new exit (range 12) 1569 | -9/Materials | Identified exit to Mines 1569 | -9/Materials | Identified exit to Storage 1638 | -9/Materials | Entered Storage 1811 | -9/Storage | Destroyed 7 combat bots 1815 | -9/Storage | Met 01-MTF 1910 | -9/Storage | Released all parts (7) 1928 | -9/Storage | Core integrity fell below 50% 1931 | -9/Storage | Lost 3 parts (1p1u1w) 1953 | -9/Storage | Learned location of Armory (-4) 1955 | -9/Storage | Build established: Mutant 2090 | -9/Storage | Discovered exit to Materials (range 16) 2101 | -9/Storage | System corruption reached 10% 2131 | -9/Storage | Identified exit to Recycling 2172 | -9/Storage | Core integrity fell below 20% 2189 | -9/Storage | Entered Materials 2189 | -8/Materials | Evolved 2 slots: Utility x2 2277 | -8/Materials | Released all parts (2) 2302 | -8/Materials | Core integrity fell below 50% 2307 | -8/Materials | Core integrity fell below 20% 2330 | -8/Materials | Lost 7 parts (1p1n2u3w) 2342 | -8/Materials | Destroyed by G-47 Trooper with Particle Gun Last Messages --------------- Testing... Terminal linked with 0 systems. Awaiting botnet instructions. 02299_ Katana destroyed. 02300_ U-05 Engineer lays Concrete. 02309_ T-07 Excavator is excavating. 02310_ ALERT: Suspicious intruders detected, dispatching Cutter reinforcements to area. 02315_ Acquired Rocket Launcher. 02331_ Critical hit (Burn: +37). 02332_ FMKG1YWNBJ&O4K&B XB4GUE0OJN6 02333_ Y-45 Defender destroyed. 02333_ B-36 Bruiser destroyed. 02336_ Terminal disabled. 02336_ Y-45 Defender destroyed. 02337_ The unstable cave ceiling collapses. 02339_ G-47 Trooper destroyed. 02339_ Critical hit (Burn: +37). 02341_ Rocket Launcher destroyed. 02342_ G-47 Trooper destroyed. Map ----- +----------------------------------------------------+ | | | | | | | | | | | | | | | | | | | | | | | | | | | | | ????????????????????????????????????????????????? | | ????????????????????????????????????????????????? | | ????????????????????????????????????????????????? | | ????????????????????????????????????????????????? | | ????????????????????????????????????????????????? | | ???????????????######???????????????????????????? | | ??????????????## ##?????????????????????????? | | ??????????????# #?????????##?????????????? | | ??????????????# ##??##### #####?????????? | | ?????????????## # ## # ?????????? | | ?????????????# #????????????? | | ?##########??# % @] #???????????? | | ?# """ #??# "" ] *% #???????????? | | ?# "T" #### "T ]] = g #??????????? | | ?# # # "" gg ##??????????? | | ?# # # #######??? | | ?# + ## ######## #=% c ! ? | | ?# """ # ######### c ? | | ?# """ # ? | | ?# """ ### ############ #####+### ?? | | ?# #?# #???????????? ???????????? | | ?##########?# +????????????????????????? | | ????????????# #????????????????????????? | | ????????????# !! #????????????????????????? | | ????????????# !! % #????????????????????????? | | ????????????# !![ #????????????????????????? | | ?????????#### #????????????????????????? | | ?????????#""" % #???##???????????????????? | | ?????????#"R "" ## !#???????????????????? | | ?????????#""" "G !#???????????????????? | | ?????????#### "" !#???????????????????? | | ????????????# !#???????????????????? | | ???????????## =[ !##???????????????????? | | ???????????# #####"######????????????????????? | | ???????????# #??? ????????????????????????? | | ???????????# #??? #???????????????????????? | +----------------------------------------------------+ Best States ------------- Heat Dissipation 48 Energy Generation 18 Energy Capacity 310 Matter Stores 450 Matter Capacity 450 Sight Range 16 Robot Scan Range 15 Terrain Scan Density 10 Armor Coverage 150 Evasion (%) 57 Recoil Reduction 2 Item Schematics ----------------- Hcp. Storage Unit | -10/Materials | Hacked Robot Schematics ------------------ None Fabricated ------------ Nothing Repaired ---------- Nothing Alien Tech Used ----------------- None Achievements -------------- None Challenges ------------ None Game ------ Seed PortableWeaponTorch Manual? 0 Play Time 00:26:13 Cumulative 643.6 hours Start 2025.06.09 @ 15:45:35 End 2025.06.09 @ 16:21:10 Sessions 1 Manual Loads 0 Difficulty Rogue Special Mode None Game No. 419 Rogue 419 Adventurer 0 Explorer 0 Win Type - Total 38 Types 25/1/6/6/0/0/0/0/0/0 Lore% 68 Gallery% 73 Achievement% 78 Wizard Run 0 Options --------- Layout 0 ASCII 0 Keyboard 1 Movement Numpad Keybinds 0 Fullscreen 2 Font 24/Smallcaps Map View 76x50 Zoom Use 0% Tactical HUD 1 Map Filters NONE Filters NONE Steam 1 RUN: 36fce77a-9b23-49f6-beb3-b59a7877b41d